bitfinex/quotes_SOLUSD_20250928
["timestamp","ask_amount","ask_price","bid_price","bid_amount"]
[1759018143507,2.01159273,203.48,203.45,4.91521258]
[1759018143820,39.46159273,203.48,203.45,4.91521258]
[1759018143997,4.6006792,203.5,203.46,0.69]
[1759018144199,42.7406792,203.5,203.47,0.69]
[1759018144397,42.7406792,203.5,203.45,4.91521258]
[1759018144398,42.7406792,203.5,203.45,17.89324403]
[1759018144614,1.30159273,203.49,203.45,17.89324403]
[1759018145728,1.30159273,203.49,203.45,17.20324403]
[1759018146030,1.30159273,203.49,203.46,0.69]
[1759018146200,42.7406792,203.5,203.46,0.69]
[1759018146402,4.6006792,203.5,203.47,0.69]
[1759018146600,5.31063657,203.5,203.45,17.20324403]
[1759018146802,5.31063657,203.5,203.46,0.69]
[1759018147314,1.30159273,203.49,203.46,5.60476234]
[1759018147836,42.12904384,203.5,203.46,5.60476234]
[1759018148023,1.30159273,203.49,203.46,4.91476234]
[1759018148329,1.30159273,203.47,203.4,0.69]
[1759018148538,1.30159273,203.45,203.4,0.69]
[1759018148710,2.01159273,203.45,203.4,0.69]
[1759018148911,40.13159273,203.45,203.4,0.69]
[1759018149112,2.01159273,203.45,203.41,4.91617914]
[1759018149332,1.97159273,203.44,203.4,4.91639949]
[1759018149626,0.67,203.43,203.4,4.91639949]
[1759018149810,39.42159273,203.44,203.4,4.91639949]
[1759018150139,40.09159273,203.44,203.4,4.91639949]
[1759018150432,40.09159273,203.44,203.36,13.59559401]
[1759018150433,1.30159273,203.41,203.36,13.59559401]
[1759018150619,1.30159273,203.41,203.37,0.71]
[1759018151316,1.30159273,203.39,203.34,0.71]
[1759018151529,1.30159273,203.39,203.27,0.1]
[1759018151530,1.30159273,203.35,203.32,5.01244137]
[1759018152430,39.42159273,203.36,203.32,5.01244137]
[1759018152608,1.97159273,203.36,203.32,5.01244137]
[1759018152813,38.12,203.35,203.32,5.01244137]
[1759018153134,38.12,203.35,203.32,5.72244137]
[1759018153721,38.12,203.35,203.32,5.01244137]
[1759018154235,1.30159273,203.35,203.32,5.01244137]
[1759018154637,1.97159273,203.36,203.32,5.01244137]
[1759018154824,40.09159273,203.36,203.32,5.72244137]
[1759018155237,1.30159273,203.35,203.32,0.09412069]
[1759018155445,1.30159273,203.33,203.32,0.09412069]
[1759018155924,40.11159273,203.33,203.32,0.09412069]
[1759018157617,1.97159273,203.33,203.32,0.09412069]
[1759018158038,40.11159273,203.33,203.32,0.09412069]
[1759018159314,133.6,203.35,203.32,0.09412069]
[1759018159529,1.30159273,203.33,203.32,0.09412069]
[1759018159743,39.44159273,203.33,203.32,0.09412069]
[1759018160037,171.76,203.35,203.32,18.01836424]
[1759018160233,133.6,203.35,203.33,0.7]
[1759018160613,133.6,203.35,203.34,0.7]
[1759018160937,133.6,203.35,203.32,18.00836424]
[1759018161131,133.6,203.35,203.33,0.7]
[1759018161532,133.6,203.35,203.34,4.91787154]
[1759018161921,133.6,203.35,203.34,5.61787154]
[1759018162318,9.02571518,203.48,203.34,17.9125504]
[1759018162319,1.30159273,203.4,203.34,17.9125504]
[1759018162533,1.30159273,203.42,203.36,13.59559401]
[1759018162732,38.18,203.41,203.37,0.7]
[1759018163046,134.90159273,203.43,203.37,0.7]
[1759018163047,38.2,203.42,203.37,0.7]
[1759018163249,38.2,203.42,203.38,0.7]
[1759018163545,39.48159273,203.42,203.39,4.91666256]
[1759018163743,133.6,203.43,203.4,0.7]
[1759018163946,171.78,203.43,203.41,0.7]
[1759018164136,133.6,203.43,203.41,0.7]
[1759018164333,133.6,203.43,203.39,17.90831898]
[1759018164531,133.6,203.43,203.4,0.7]
[1759018165421,133.6,203.43,203.41,4.91617914]
[1759018167938,134.90159273,203.43,203.36,12.2930673]
[1759018168143,1.30159273,203.41,203.36,12.9930673]
[1759018168441,1.30159273,203.42,203.37,0.7]
[1759018168642,1.99159273,203.41,203.37,4.91714608]
[1759018169147,1.30159273,203.4,203.37,4.91714608]
[1759018169325,1.30159273,203.38,203.33,12.29488857]
[1759018169520,1.30159273,203.37,203.33,12.29488857]
[1759018169726,39.46159273,203.37,203.33,12.99488857]
[1759018170254,40.15159273,203.37,203.34,4.91767437]
[1759018170625,1.30159273,203.36,203.34,4.91767437]
[1759018171328,40.15159273,203.37,203.33,4.91811341]
[1759018171827,40.13159273,203.36,203.33,4.91811341]
[1759018172030,1.99159273,203.36,203.33,4.91811341]
[1759018172229,39.44159273,203.36,203.32,0.09412069]
[1759018172435,1.30159273,203.34,203.32,0.09412069]
[1759018172650,38.85,203.35,203.32,0.09412069]
[1759018172886,1.30159273,203.34,203.32,0.09412069]
[1759018173753,40.15159273,203.33,203.32,0.09412069]
[1759018174131,1.99159273,203.33,203.32,0.09412069]
[1759018174332,40.17159273,203.33,203.32,0.09412069]
[1759018174649,1.99159273,203.33,203.32,0.09412069]
[1759018174956,40.17159273,203.33,203.32,0.09412069]
[1759018175449,1.99159273,203.33,203.32,0.09412069]
[1759018175645,40.15159273,203.33,203.32,0.09412069]
[1759018176748,1.99159273,203.33,203.32,0.09412069]
[1759018176952,40.17159273,203.33,203.32,0.09412069]
[1759018179243,40.15159273,203.33,203.32,0.09412069]
[1759018179439,1.99159273,203.33,203.32,0.09412069]
[1759018179837,1.30159273,203.33,203.32,0.09412069]
[1759018180030,39.48159273,203.33,203.32,0.09412069]
[1759018181250,40.17159273,203.33,203.32,0.09412069]
[1759018181554,1.99159273,203.33,203.32,0.09412069]
[1759018181856,39.46159273,203.33,203.32,0.09412069]
[1759018183335,1.30159273,203.33,203.32,0.09412069]
[1759018183535,39.46159273,203.33,203.32,0.09412069]
[1759018183950,40.15159273,203.33,203.32,0.09412069]
[1759018184262,39.46159273,203.33,203.32,0.09412069]
[1759018185740,40.15159273,203.33,203.32,0.09412069]
[1759018186054,39.46159273,203.33,203.32,0.09412069]
[1759018186854,1.30159273,203.33,203.32,0.09412069]
[1759018187047,39.44159273,203.33,203.32,0.09412069]
[1759018187354,39.42159273,203.33,203.32,0.09412069]
[1759018188451,1.30159273,203.33,203.32,0.09412069]
[1759018188753,39.42159273,203.33,203.32,0.09412069]
[1759018190650,40.15676207,203.33,203.32,0.09412069]
[1759018192559,2.03676207,203.33,203.32,0.09412069]
[1759018192760,40.13676207,203.33,203.32,0.09412069]
[1759018193458,2.03676207,203.33,203.32,0.09412069]
[1759018193651,40.11676207,203.33,203.32,0.09412069]
[1759018194349,2.03676207,203.33,203.32,0.09412069]
[1759018194567,40.11676207,203.33,203.32,0.09412069]
[1759018195346,0.69,203.42,203.32,5.72244596]
[1759018195645,2.03676207,203.39,203.33,0.71]
[1759018195873,38.12,203.38,203.33,0.71]
[1759018196039,3.28570481,203.42,203.33,0.71]
[1759018196246,2.03676207,203.42,203.33,0.71]
[1759018196656,38.12,203.41,203.33,0.71]
[1759018196963,2.03676207,203.42,203.33,0.71]
[1759018197161,2.03676207,203.38,203.34,4.91787154]
[1759018197344,2.03676207,203.38,203.35,0.71]
[1759018197539,0.69,203.4,203.35,0.71]
[1759018197540,2.03676207,203.39,203.35,0.71]
[1759018197750,2.03676207,203.4,203.36,0.71]
[1759018197963,38.1,203.39,203.37,0.71]
[1759018198180,2.03676207,203.4,203.37,0.71]
[1759018198547,2.03676207,203.42,203.38,0.71]
[1759018198747,2.03676207,203.4,203.38,0.71]
[1759018199466,38.1,203.41,203.38,0.71]
[1759018199670,2.03676207,203.4,203.38,5.62690192]
[1759018199965,3.2865426,203.46,203.39,0.71]
[1759018200169,2.03676207,203.44,203.39,0.71]
[1759018201174,38.1,203.45,203.39,0.71]
[1759018201354,2.03676207,203.44,203.39,0.71]
[1759018201672,2.03676207,203.44,203.4,4.91642084]
[1759018201854,2.03676207,203.44,203.41,0.71]
[1759018202659,2.03676207,203.42,203.35,25.88915501]
[1759018202866,2.03676207,203.4,203.35,0.71]
[1759018203075,2.03676207,203.4,203.36,0.71]
[1759018203372,2.03676207,203.41,203.36,0.71]
[1759018203558,40.13676207,203.41,203.37,0.71]
[1759018203756,2.03676207,203.4,203.37,5.62693063]
[1759018203959,2.03676207,203.38,203.34,5.62783327]
[1759018204166,2.03676207,203.36,203.31,0.71]
[1759018204354,2.03676207,203.35,203.31,0.71]
[1759018204569,2.03676207,203.34,203.3,0.71]
[1759018204768,2.03676207,203.33,203.3,0.71]
[1759018205171,2.72676207,203.33,203.27,5.72937002]
[1759018205355,40.90676207,203.33,203.27,5.72937002]
[1759018206247,40.21676207,203.33,203.27,5.72937002]
[1759018206447,2.03676207,203.33,203.27,5.72937002]
[1759018206651,40.21676207,203.33,203.27,5.72937002]
[1759018207262,40.21676207,203.33,203.29,4.91906381]
[1759018207651,2.03676207,203.34,203.32,5.72240972]
[1759018207871,40.21676207,203.34,203.32,5.72240972]
[1759018208073,2.03676207,203.34,203.32,5.72240972]
[1759018208278,40.21676207,203.34,203.32,5.72240972]
[1759018208580,40.90676207,203.33,203.32,0.09412069]
[1759018209575,40.21676207,203.33,203.32,0.09412069]
[1759018210461,2.03676207,203.33,203.32,0.09412069]
[1759018211279,40.19676207,203.33,203.32,0.09412069]
[1759018211490,2.03676207,203.33,203.32,0.09412069]
[1759018211665,40.19676207,203.33,203.32,0.09412069]
[1759018211862,0.69,203.35,203.32,0.09412069]
[1759018212059,2.03676207,203.36,203.33,0.7]
[1759018212377,38.18,203.36,203.33,5.61793628]
[1759018212675,38.18,203.36,203.34,0.7]
[1759018212861,38.18,203.36,203.33,4.91793628]
[1759018213070,2.03676207,203.4,203.34,0.7]
[1759018213265,38.18,203.39,203.34,0.7]
[1759018213464,38.18,203.39,203.33,17.2132198]
[1759018213465,40.21676207,203.39,203.35,0.7]
[1759018213662,2.03676207,203.38,203.33,4.91793628]
[1759018213864,2.03676207,203.37,203.33,5.61793628]
[1759018214483,2.03676207,203.37,203.34,0.7]
[1759018214684,2.03676207,203.35,203.32,0.09412069]
[1759018214886,2.03676207,203.33,203.32,0.09412069]
[1759018215981,2.03676207,203.36,203.32,0.79412069]
[1759018216189,40.23676207,203.36,203.33,0.7]
[1759018216567,38.2,203.36,203.33,4.91803808]
[1759018216867,3.98030265,203.39,203.34,0.7]
[1759018216868,2.03676207,203.39,203.34,0.7]
[1759018217263,2.03676207,203.38,203.35,0.7]
[1759018217582,2.03676207,203.37,203.35,0.7]
[1759018217910,2.03676207,203.38,203.36,0.7]
[1759018218192,133.6,203.4,203.37,0.7]
[1759018218193,135.63676207,203.4,203.37,0.7]
[1759018218387,2.03676207,203.39,203.34,0.7]
[1759018218682,135.63676207,203.4,203.35,0.7]
[1759018218867,173.85676207,203.4,203.36,0.7]
[1759018219058,173.85676207,203.4,203.37,0.7]
[1759018219263,2.03676207,203.39,203.37,0.7]
[1759018219465,173.85676207,203.4,203.37,0.7]
[1759018219673,135.63676207,203.4,203.37,0.7]
[1759018219870,173.85676207,203.4,203.37,0.7]
[1759018221006,173.85676207,203.4,203.37,5.61705158]
[1759018221706,133.6,203.4,203.38,0.67]
[1759018222001,133.6,203.4,203.39,0.67]
[1759018222789,2.03676207,203.44,203.39,0.67]
[1759018222981,2.03676207,203.44,203.4,4.91642084]
[1759018223189,173.85676207,203.45,203.41,0.67]
[1759018223401,173.85676207,203.45,203.42,0.67]
[1759018223706,171.82,203.45,203.42,0.67]
[1759018223916,171.82,203.45,203.43,0.67]
[1759018224112,135.63676207,203.45,203.41,0.67]
[1759018224423,2.03676207,203.44,203.41,0.67]
[1759018225110,2.03676207,203.44,203.41,5.58607552]
[1759018225282,171.8,203.45,203.41,4.91607552]
[1759018225601,133.6,203.45,203.42,0.67]
[1759018225813,2.03676207,203.43,203.37,14.79180534]
[1759018226015,2.03676207,203.39,203.34,13.59559401]
[1759018226192,2.03676207,203.39,203.35,0.67]
[1759018226391,0.67,203.39,203.34,4.91787154]
[1759018226606,2.03676207,203.37,203.34,4.91787154]
[1759018226904,2.03676207,203.36,203.32,5.6822928]
[1759018227313,2.03676207,203.36,203.33,0.67]
[1759018228113,38.32,203.37,203.33,0.67]
[1759018228298,40.35676207,203.37,203.33,0.67]
[1759018229109,2.03676207,203.35,203.32,0.09412069]
[1759018230404,38.97,203.36,203.32,5.01246316]
[1759018230614,2.03676207,203.35,203.32,5.68246316]
[1759018230823,2.03676207,203.35,203.32,0.09412069]
[1759018232727,2.03676207,203.34,203.32,0.09412069]
[1759018233425,40.31676207,203.35,203.32,0.09412069]
[1759018233607,2.03676207,203.34,203.32,0.09412069]
[1759018234727,40.31676207,203.35,203.32,0.09412069]
[1759018236028,2.03676207,203.34,203.32,0.09412069]
[1759018236238,40.96676207,203.34,203.32,0.09412069]
[1759018237228,2.03676207,203.33,203.32,0.09412069]
[1759018238937,40.29676207,203.34,203.32,0.09412069]
[1759018239537,2.03676207,203.34,203.32,0.09412069]
[1759018239740,40.29676207,203.34,203.32,0.09412069]
[1759018240032,2.03676207,203.34,203.32,0.09412069]
[1759018240231,40.27676207,203.34,203.32,0.09412069]
[1759018241941,2.03676207,203.34,203.32,0.09412069]
[1759018242132,2.70676207,203.33,203.32,0.09412069]
[1759018242839,2.03676207,203.33,203.32,0.09412069]
[1759018243037,2.70676207,203.33,203.32,0.09412069]
[1759018243345,40.94676207,203.33,203.32,0.09412069]
[1759018244041,2.70676207,203.33,203.32,0.09412069]
[1759018244217,40.94676207,203.33,203.32,0.09412069]
[1759018245816,2.70676207,203.33,203.32,0.09412069]
[1759018246012,40.94676207,203.33,203.32,0.09412069]
[1759018246241,5.99444872,203.33,203.32,0.09412069]
[1759018246444,40.92676207,203.33,203.32,0.09412069]
[1759018246630,44.21444872,203.33,203.32,0.09412069]
[1759018247052,44.21444872,203.33,203.27,0.1]
[1759018247053,13.59559401,203.32,203.27,0.1]
[1759018247353,20.0,203.25,203.08,0.67]
[1759018247514,13.59559401,203.2,203.06,4.92464048]
[1759018247715,2.03676207,203.12,203.07,0.67]
[1759018247915,2.03676207,203.12,202.94,3.91629673]
[1759018247916,36.48,203.12,203.09,0.67]
[1759018248323,38.51676207,203.12,203.09,0.67]
[1759018249221,2.03676207,203.15,203.11,0.77]
[1759018249427,2.03676207,203.15,203.12,0.67]
[1759018249629,2.03676207,203.15,203.13,0.67]
[1759018250343,27.99676207,203.15,203.13,0.67]
[1759018250521,1.30579944,203.14,203.13,0.67]
[1759018251546,1.30579944,203.17,203.13,5.59279549]
[1759018251724,1.30579944,203.17,203.14,0.68]
[1759018251927,1.30579944,203.16,203.15,0.68]
[1759018252129,0.72,203.22,203.15,0.68]
[1759018252323,1.30579944,203.17,203.15,0.68]
[1759018252523,1.30579944,203.18,203.16,0.68]
[1759018252822,1.30579944,203.2,203.17,0.68]
[1759018253023,1.30579944,203.19,203.17,0.68]
[1759018253823,1.30579944,203.18,203.17,0.68]
[1759018255434,1.30579944,203.19,203.17,0.68]
[1759018256748,1.30579944,203.18,203.17,0.68]
[1759018257430,1.30579944,203.18,203.13,0.68]
[1759018257622,1.30579944,203.15,203.13,0.68]
[1759018258237,172.48,203.21,203.11,5.70343024]
[1759018258238,1.30579944,203.14,203.11,5.70343024]
[1759018258447,1.30579944,203.12,203.11,5.02343024]
[1759018258944,1.30579944,203.12,203.11,5.70343024]
[1759018259326,1.30579944,203.13,203.11,5.70343024]
[1759018259527,1.30579944,203.18,203.12,14.27559401]
[1759018259746,1.30579944,203.18,203.13,0.68]
[1759018261247,134.90579944,203.21,203.14,13.59559401]
[1759018261430,134.90579944,203.21,203.16,13.59559401]
[1759018261631,1.30579944,203.2,203.17,0.68]
[1759018261952,1.30579944,203.2,203.18,0.68]
[1759018262528,1.30579944,203.2,203.19,0.68]
[1759018262754,134.90579944,203.21,203.19,0.68]
[1759018263932,1.30579944,203.2,203.18,4.92153033]
[1759018264132,1.30579944,203.2,203.18,5.60153033]
[1759018264535,133.6,203.21,203.19,0.68]
[1759018264947,134.90579944,203.21,203.19,0.68]
[1759018265454,134.90579944,203.21,203.2,0.68]
[1759018266755,134.90579944,203.21,203.16,0.68]
[1759018266944,1.30579944,203.17,203.15,0.68]
[1759018267348,1.30579944,203.17,203.14,18.5183074]
[1759018267554,1.30579944,203.15,203.14,18.5183074]
[1759018267740,1.30579944,203.15,203.14,5.60271339]
[1759018267935,1.30579944,203.16,203.14,5.60271339]
[1759018268252,1.30579944,203.16,203.15,0.68]
[1759018268646,1.30579944,203.18,203.15,0.68]
[1759018269937,1.30579944,203.18,203.14,4.92271339]
[1759018270137,1.30579944,203.18,203.14,5.61271339]
[1759018271162,1.30579944,203.18,203.14,4.92271339]
[1759018271457,1.30579944,203.18,203.15,0.69]
[1759018271637,1.30579944,203.18,203.15,5.61227088]
[1759018272463,1.30579944,203.18,203.16,0.69]
[1759018272668,1.30579944,203.18,203.15,4.92227088]
[1759018272966,1.30579944,203.18,203.15,5.61227088]
[1759018274968,1.30579944,203.18,203.15,0.69]
[1759018275560,133.6,203.2,203.16,0.69]
[1759018275858,133.6,203.2,203.17,13.59559401]
[1759018276170,133.6,203.2,203.18,0.69]
[1759018276354,133.6,203.2,203.17,13.59559401]
[1759018276546,133.6,203.2,203.18,0.69]
[1759018276745,133.6,203.2,203.19,5.61150204]
[1759018278541,134.90579944,203.26,203.2,13.59559401]
[1759018278864,173.62579944,203.26,203.2,14.28559401]
[1759018279856,173.62579944,203.26,203.21,4.92101766]
[1759018280062,1.30579944,203.25,203.21,4.92101766]
[1759018280379,1.98579944,203.25,203.21,4.92101766]
[1759018280671,1.30579944,203.24,203.21,4.92101766]
[1759018281257,1.30579944,203.22,203.2,4.92123861]
[1759018281462,1.98579944,203.22,203.2,4.92123861]
[1759018281764,1.30579944,203.21,203.19,4.9214683]
[1759018283169,1.30579944,203.22,203.19,4.9214683]
[1759018283949,0.68,203.24,203.19,4.9214683]
[1759018283950,1.30579944,203.23,203.19,5.6314683]
[1759018285171,1.30579944,203.22,203.19,5.6314683]
[1759018285546,1.30579944,203.22,203.2,0.71]
[1759018286160,1.30579944,203.22,203.18,5.63174426]
[1759018286468,1.30579944,203.22,203.19,0.71]
[1759018286651,0.68,203.25,203.2,4.92125984]
[1759018286844,1.30579944,203.23,203.2,5.63125984]
[1759018287045,133.6,203.26,203.21,0.71]
[1759018287244,133.6,203.26,203.22,13.59559401]
[1759018287464,133.6,203.26,203.23,0.71]
[1759018287656,133.6,203.26,203.21,13.59559401]
[1759018287843,133.6,203.26,203.24,0.71]
[1759018288658,133.6,203.26,203.25,0.71]
[1759018289366,133.6,203.26,203.23,14.30559401]
[1759018289562,133.6,203.26,203.24,0.71]
[1759018289754,133.6,203.26,203.25,0.71]
[1759018290152,133.6,203.26,203.25,14.30559401]
[1759018290565,38.64,203.32,203.26,13.59559401]
[1759018290779,4.59348015,203.31,203.27,4.91956511]
[1759018290980,1.30579944,203.31,203.27,5.62956511]
[1759018291184,39.94579944,203.32,203.28,0.71]
[1759018291350,3.28550291,203.31,203.28,0.71]
[1759018291550,39.94579944,203.32,203.28,0.71]
[1759018291881,3.28583233,203.31,203.28,0.71]
[1759018292179,39.94579944,203.32,203.28,0.71]
[1759018292375,39.94579944,203.32,203.29,4.91908111]
[1759018293172,3.28439078,203.32,203.29,5.62908111]
[1759018293472,39.92579944,203.33,203.29,5.62908111]
[1759018293659,1.30579944,203.34,203.3,0.71]
[1759018293850,43.21112816,203.35,203.3,0.71]
[1759018294050,3.28532872,203.34,203.3,0.71]
[1759018294251,41.90532872,203.35,203.31,0.71]
[1759018294556,43.89112816,203.35,203.29,13.00770278]
[1759018294761,4.59112816,203.35,203.3,0.71]
[1759018294957,4.59112816,203.35,203.31,0.71]
[1759018295558,3.28532872,203.35,203.31,0.71]
[1759018295751,4.59112816,203.35,203.31,0.71]
[1759018295952,4.59112816,203.35,203.3,13.59559401]
[1759018296160,3.96532872,203.35,203.29,13.00770278]
[1759018296361,1.30579944,203.34,203.29,13.00770278]
[1759018296561,1.30579944,203.34,203.3,0.71]
[1759018296750,4.59112816,203.35,203.31,0.71]
[1759018298075,4.59112816,203.35,203.32,4.9183553]
[1759018298279,1.30579944,203.33,203.32,4.9183553]
[1759018298592,1.30579944,203.34,203.32,5.6283553]
[1759018300183,1.30579944,203.33,203.31,4.91859721]
[1759018300368,1.30579944,203.33,203.31,5.62859721]
[1759018303684,1.30579944,203.32,203.3,4.91882834]
[1759018303866,1.30579944,203.33,203.31,0.71]
[1759018304779,172.22,203.36,203.3,17.21592622]
[1759018304965,1.30579944,203.35,203.32,0.71]
[1759018305165,1.30579944,203.35,203.31,13.59559401]
[1759018305380,1.30579944,203.35,203.31,14.30559401]
[1759018305687,1.30579944,203.35,203.32,5.6283553]
[1759018306489,1.30579944,203.34,203.3,4.91860438]
[1759018306671,1.30579944,203.34,203.32,0.71]
[1759018307069,1.30579944,203.34,203.3,4.91860438]
[1759018307278,1.30579944,203.34,203.31,0.71]
[1759018307486,1.30579944,203.33,203.3,4.91860438]
[1759018307879,1.30579944,203.31,203.3,4.91860438]
[1759018308078,1.30579944,203.31,203.28,4.91908277]
[1759018308279,1.30579944,203.29,203.27,4.91955148]
[1759018308589,1.30579944,203.28,203.27,4.91955148]
[1759018308901,1.30579944,203.29,203.27,4.91955148]
[1759018309083,1.30579944,203.31,203.28,0.71]
[1759018309283,1.30579944,203.31,203.27,4.91955148]
[1759018309284,1.30579944,203.31,203.29,0.71]
[1759018309575,133.6,203.32,203.31,4.91859721]
[1759018309770,133.6,203.32,203.31,5.62859721]
[1759018311878,1.30579944,203.34,203.31,5.62859721]
[1759018312694,2.03608362,203.33,203.31,5.62859721]
[1759018313380,2.03608362,203.33,203.31,4.91859721]
[1759018313784,2.03608362,203.33,203.3,4.91883915]
[1759018314090,2.03608362,203.33,203.31,0.67]
[1759018315878,2.03608362,203.33,203.32,4.9183553]
[1759018316698,2.03608362,203.33,203.31,5.58855125]
[1759018316888,2.03608362,203.33,203.31,4.91855125]
[1759018317090,2.03608362,203.32,203.31,4.91855125]
[1759018317392,2.03608362,203.32,203.3,4.91880808]
[1759018317781,2.03608362,203.31,203.3,4.91880808]
[1759018318802,2.03608362,203.31,203.28,18.51491711]
[1759018318994,2.03608362,203.32,203.28,19.18491711]
[1759018319183,2.03608362,203.32,203.29,0.67]
[1759018319618,2.03608362,203.32,203.3,0.67]
[1759018320273,172.1,203.36,203.28,30.81322486]
[1759018320274,2.03608362,203.33,203.31,0.67]
[1759018320998,2.03608362,203.34,203.32,4.9183553]
[1759018321399,2.03608362,203.33,203.32,4.9183553]
[1759018322805,2.03608362,203.34,203.32,5.5883553]
[1759018323101,2.03608362,203.34,203.3,12.29707374]
[1759018323288,2.03608362,203.34,203.31,0.67]
[1759018323602,2.03608362,203.33,203.31,0.67]
[1759018324507,2.03608362,203.33,203.32,4.9183553]
[1759018325279,2.03608362,203.33,203.31,0.67]
[1759018325487,2.03608362,203.32,203.3,4.91866414]
[1759018325687,2.03608362,203.31,203.29,4.91905364]
[1759018325997,2.72608362,203.3,203.25,0.67]
[1759018326199,2.03608362,203.28,203.25,5.5900492]
[1759018326589,2.03608362,203.26,203.14,20.0]
[1759018326788,2.03608362,203.22,203.2,13.59559401]
[1759018327107,2.03608362,203.22,203.2,14.80567551]
[1759018327308,2.03608362,203.22,203.19,0.67]
[1759018327500,2.03608362,203.2,203.18,14.80713704]
[1759018327812,2.72608362,203.19,203.14,4.92269305]
[1759018327982,2.03608362,203.17,203.14,4.92269305]
[1759018328189,3.27987132,203.2,203.12,13.59559401]
[1759018328392,2.03608362,203.13,203.04,0.67]
[1759018328610,0.69,203.16,202.99,0.1]
[1759018328611,40.63608362,203.12,203.05,14.81664403]
[1759018328822,41.32608362,203.12,203.02,0.67]
[1759018328989,2.03608362,203.05,203.02,14.81664403]
[1759018329192,2.03608362,203.05,203.01,0.66]
[1759018329500,2.03608362,203.05,203.0,28.41223804]
[1759018329709,11.37459872,203.13,203.0,14.81664403]
[1759018329997,2.03608362,203.08,203.01,13.59559401]
[1759018330211,2.03608362,203.06,203.01,13.59559401]
[1759018330397,2.03608362,203.04,203.0,13.59559401]
[1759018330713,2.03608362,203.04,203.01,4.92586572]
[1759018331216,38.6,203.09,203.0,13.59559401]
[1759018331387,0.67,203.1,203.01,0.66]
[1759018331718,2.03608362,203.17,203.01,0.66]
[1759018331719,20.81608362,203.09,203.01,0.66]
[1759018331889,2.03608362,203.09,203.01,0.66]
[1759018332290,32.69608362,203.09,203.01,0.66]
[1759018332503,32.70113967,203.09,203.05,4.92489534]
[1759018332697,32.70113967,203.09,203.05,5.58489534]
[1759018332900,30.66,203.09,203.05,5.58489534]
[1759018333101,32.70113967,203.09,203.06,0.66]
[1759018334416,2.04113967,203.07,203.03,13.59559401]
[1759018334598,2.04113967,203.06,203.04,5.5851379]
[1759018334918,2.04113967,203.08,203.04,5.5851379]
[1759018335804,2.04113967,203.07,203.04,5.5851379]
[1759018336000,0.67,203.13,203.05,14.25559401]
[1759018336206,2.04113967,203.11,203.06,0.66]
[1759018336408,2.04113967,203.1,203.05,13.59559401]
[1759018336615,2.04113967,203.09,203.07,4.9244103]
[1759018337222,2.04113967,203.1,203.07,4.9244103]
[1759018337523,2.04113967,203.13,203.08,14.25559401]
[1759018337731,2.04113967,203.12,203.08,14.25559401]
[1759018338096,2.04113967,203.12,203.09,0.66]
[1759018338703,2.04113967,203.13,203.1,5.58368291]
[1759018339023,2.04113967,203.15,203.11,0.66]
[1759018339196,38.7,203.17,203.11,0.66]
[1759018339394,4.09973466,203.3,203.11,0.66]
[1759018339610,2.04113967,203.24,203.14,20.0]
[1759018339923,2.04113967,203.2,203.15,13.59559401]
[1759018340222,2.04113967,203.19,203.15,17.69532867]
[1759018340398,2.04113967,203.2,203.15,17.69532867]
[1759018340600,5.04865329,203.21,203.15,18.36532867]
[1759018340904,5.04865329,203.2,203.16,17.22780074]
[1759018341103,5.04865329,203.19,203.16,4.92222878]
[1759018341306,5.04865329,203.18,203.16,4.92222878]
[1759018341917,0.72,203.23,203.16,4.92222878]
[1759018341918,5.04865329,203.2,203.16,4.92222878]
[1759018342705,0.72,203.23,203.16,4.92222878]
[1759018342911,5.04865329,203.22,203.16,4.92222878]
[1759018343125,5.04865329,203.22,203.16,17.22780074]
[1759018343326,5.04865329,203.24,203.17,13.59559401]
[1759018344509,5.04865329,203.24,203.18,17.22610492]
[1759018345007,5.04865329,203.24,203.18,32.03470378]
[1759018345626,5.04865329,203.2,203.16,4.92198877]
[1759018346413,5.04865329,203.18,203.14,4.92251841]
[1759018347935,5.04865329,203.19,203.14,4.92251841]
[1759018350620,5.04865329,203.19,203.12,17.23098837]
[1759018350929,133.6,203.23,203.12,32.04251173]
[1759018351130,133.6,203.23,203.15,5.04865329]
[1759018351131,138.64865329,203.23,203.15,5.04865329]
[1759018351337,138.64865329,203.23,203.16,13.59559401]
[1759018351515,133.6,203.23,203.18,13.59559401]